Cogmind - Beta 13 @@@ ROGUE MODE // 2024.07.25 @ 16:47:27 Player: N.W.L Result: Destroyed by L-31 Rogue with Katana Performance ------------- Evolutions (2) 1000 Regions Visited (6) 1200 Robots Destroyed (39) 195 Value Destroyed (1499) 1499 Prototype IDs (15) 300 Alien Tech Used (0) 0 Bonus (2004) 2004 TOTAL SCORE: 6198 Bonus ------- High Alert Combat Kills 34 Follower Combat Kills 70 Entered Garrisons 400 Used RIF Installer 1500 Cogmind --------- Core Integrity 0/550 Matter 255/300 Energy 100/100 System Corruption 1% Temperature Cool (0) Movement Hovering (70) Location -8/Garrison Parts ------- > --- POWER (1) -------- (None) > --- PROPULSION (2) --- Gyrokinetic Inverter > --- UTILITY (6) ------ Advanced System Shield Relay Coupler [NC] (29) Relay Coupler [Grunt] (27) Relay Coupler [Grunt] (1) Relay Coupler [Brawler] (24) Relay Coupler [Hunter] (12) > --- WEAPON (2) ------- Improved Datajack > --- INVENTORY (5) ---- Micro Nuclear Core Neutrino Core Heavy Phase Cannon Light Assault Rifle Improved Remote Datajack Peak State ------------ > --- POWER ------------ Light Ion Engine > --- PROPULSION ------- Gyrokinetic Inverter > --- UTILITY ---------- Advanced System Shield Relay Coupler [NC] Relay Coupler [Grunt] Relay Coupler [Grunt] Relay Coupler [Brawler] Relay Coupler [Hunter] > --- WEAPON ----------- Heavy Phase Cannon Improved Datajack > --- INVENTORY -------- Micro Nuclear Core Neutrino Core Light Assault Rifle Improved Remote Datajack [Rating: 38] Favorites ----------- Power Light Ion Engine Engine Light Ion Engine Power Core Light Nuclear Core Propulsion Flight Unit Treads Light Treads Hover Unit Gyrokinetic Inverter Flight Unit Flight Unit Utility Transport Network Coupler Device Trap Scanner Processor Transport Network Coupler Hackware Hacking Suite Weapon Hammer Energy Gun Improved EM Shotgun Energy Cannon Heavy Phase Cannon Ballistic Gun Light Assault Rifle Special Weapon Multitool Impact Weapon Hammer Special Melee Weapon Improved Datajack Build | -11 -10 -10 -8 -8 -8 -8 ------- Run | Yrd Mat Sub Mat Gar Mat Gar Slots Evolved 4 | . . . 4 . . . Power . | . . . . . . . Propulsion . | . . . . . . . Utility 4 | . . . 4 . . . Weapon . | . . . . . . . Parts Attached 58 | 4 11 5 2 8 7 21 Power 5 | . . . . 1 1 3 Engine 3 | . . . . 1 . 2 Core 2 | . . . . . 1 1 Reactor . | . . . . . . . Propulsion 14 | 2 3 2 . 3 2 2 Treads 5 | 2 3 . . . . . Leg . | . . . . . . . Wheel . | . . . . . . . Hover 1 | . . . . . . 1 Flight 8 | . . 2 . 3 2 1 Utility 20 | . 3 2 1 3 2 9 Device 8 | . . 1 1 3 2 1 Storage . | . . . . . . . Processor 3 | . 3 . . . . . Hackware 9 | . . 1 . . . 8 Protection . | . . . . . . . Artifact . | . . . . . . . Weapon 19 | 2 5 1 1 1 2 7 Energy Gun 7 | 1 3 1 . 1 . 1 Energy Cannon 1 | . . . . . . 1 Ballistic Gun 3 | 1 1 . . . . 1 Ballistic Cannon . | . . . . . . . Launcher . | . . . . . . . Special Weapon 1 | . . . 1 . . . Impact Weapon 4 | . 1 . . . 1 2 Slashing Weapon . | . . . . . . . Piercing Weapon . | . . . . . . . Special Melee Weapon 3 | . . . . . 1 2 Unidentified Prototypes 2 | . 1 . . . 1 . Corrupted Parts 2 | . . 1 . . . 1 System Corruption 3 | . . 2 . . . 1 Parts Lost 13 | . . . 1 4 2 6 Power 2 | . . . . 1 . 1 Propulsion 3 | . . . . 1 1 1 Utility 5 | . . . . 2 . 3 Weapon 3 | . . . 1 . 1 1 Highest Loss Streak 3 | . . . 1 3 2 3 To Critical Strikes 1 | . . . . . 1 . Average Slot Usage (%) 66 | . 78 72 57 57 52 62 Engine 1 | . . . . 2 . 3 Treads 8 | . 28 6 . . . . Flight 10 | . . 21 18 16 18 7 Device 6 | . . 12 7 10 12 5 Processor 10 | . 21 15 9 8 . . Hackware 9 | . . . 9 9 9 27 Energy Gun 5 | . 16 1 . . . . Ballistic Gun 3 | . 10 . . . . . Impact Weapon 6 | . . 14 9 9 8 7 Special Melee Weapon 1 | . . . . . 5 5 Naked Turns . | . . . . . . . Heaviest Build 14 | 2 6 7 6 12 6 14 Greatest Support 40 | 3 40 40 8 8 9 11 Greatest Overweight (x) 3 | . 1 2 . 3 . 1 Average Overweight (x) . | . . . . . . . Largest Inventory Capacity 5 | 5 5 5 5 5 5 5 Average Capacity 5 | 5 5 5 5 5 5 5 Most Carried 5 | . 5 5 5 5 5 5 Average Carried 4 | . 3 4 4 4 4 4 Final Capacity 5 | 5 5 5 5 5 5 5 Final Carried 5 | . 5 5 4 3 5 5 Class Distribution -------------------- 59% | Mutant 33% | Scavenger-Mutant 7% | Bothacker-Mutant Dominant Class ---------------- Mutant | -10/Materials Mutant | -10/Subcaves Scavenger-Mutant | -8/Materials Scavenger-Mutant | -8/Garrison Mutant | -8/Materials Mutant | -8/Garrison Resources | -11 -10 -10 -8 -8 -8 -8 ----------- Run | Yrd Mat Sub Mat Gar Mat Gar Matter Collected 850 | 224 204 64 20 135 30 173 Remotely . | . . . . . . . Salvage Created 1067 | 20 569 64 57 140 42 175 Parts 68 | 3 45 9 1 6 . 4 Haulers Intercepted 3 | . 2 . 1 . . . Recyclers Shooed 3 | . 3 . . . . . Parts Field Recycled . | . . . . . . . Retrieved Matter . | . . . . . . . Parts Self-Destructed 9 | . . 9 . . . . Prevented . | . . . . . . . Kills | -11 -10 -10 -8 -8 -8 -8 ------- Run | Yrd Mat Sub Mat Gar Mat Gar Combat Hostiles Destroyed 26 | . 11 4 . 6 . 5 Melee 3 | . . 1 . . . 2 Guns 16 | . 10 . . 5 . 1 AOE 4 | . 1 3 . . . . Classes Destroyed 8 | 1 6 . . . 1 . Worker 1 | . . . . . 1 . Tunneler 3 | 1 1 . . . 1 . Hauler 3 | . 2 . 1 . . . Recycler 2 | . 2 . . . . . Operator 2 | . 2 . . . . . Watcher 2 | . 2 . . . . . Swarmer 16 | . 6 3 . 5 . 2 Grunt 10 | . 5 1 . 1 . 3 Best Kill Streak 9 | 1 9 3 1 5 2 3 Combat Bots Only 8 | . 8 3 . 5 . 3 Max Kills in Single Turn 2 | 1 2 2 1 1 1 1 Gunslinging . | . . . . . . . Exploded 2 | . 1 2 . . . . Melee 1 | . . 1 . . . 1 Uniques/NPCs Destroyed . | . . . . . . . Combat | -11 -10 -10 -8 -8 -8 -8 -------- Run | Yrd Mat Sub Mat Gar Mat Gar Hostile Shots Fired 229 | . 54 21 10 83 21 40 Missed 78 | . 14 3 5 35 11 10 Damage Taken 1894 | . 542 162 77 554 169 390 Core 800 | . 190 33 47 345 36 149 Absorbed by Shields 9 | . . . . 9 . . Core Remaining (%) 55 | 100 . 10 . . . . Volleys Fired 80 | 4 52 5 1 9 . 9 Largest 2 | 2 2 1 1 1 . 1 Hottest 90 | 60 90 45 30 45 . 90 Shots Fired 136 | 8 104 5 1 9 . 9 Gun 134 | 8 104 5 . 9 . 8 Cannon 1 | . . . . . . 1 Launcher . | . . . . . . . Special 1 | . . . 1 . . . Kinetic 81 | 4 74 . . . . 3 Thermal 24 | 4 18 . 1 . . 1 Explosive . | . . . . . . . Electromagnetic 31 | . 12 5 . 9 . 5 Robot Hit Streak 14 | 6 12 3 . 14 . 2 Robot Miss Streak 7 | 1 3 7 . 1 . 5 Penetration Max . | . . . . . . . Secondary Targets 1 | . 1 . . . . . Max Gunslinging Chain 1 | . 1 . . . . . Shots Hit Robots 115 | 7 71 3 1 16 2 15 Core Hits 43 | 1 30 4 . 5 . 3 Critical Kills . | . . . . . . . Critical Parts Destroyed 2 | . . . . . 1 1 Critical Strikes 2 | . . . . . 1 1 Smash 2 | . . . . . 1 1 Melee Attacks 113 | . 8 11 6 50 5 33 Impact 105 | . 8 11 6 50 5 25 Slashing . | . . . . . . . Piercing . | . . . . . . . Sneak Attacks 5 | . . . 1 . 2 2 Combat Hostiles 2 | . . . . . . 2 Follow-up Attacks . | . . . . . . . Damage Inflicted 1996 | 66 841 226 52 302 108 401 Guns 952 | 66 694 29 . 134 . 29 Cannons . | . . . . . . . Explosions 322 | . 141 181 . . . . Melee 716 | . . 16 52 168 108 372 Ramming 6 | . 6 . . . . . Kinetic 434 | 32 402 . . . . . Thermal 378 | 34 163 181 . . . . Explosive 141 | . 141 . . . . . Electromagnetic 321 | . 129 29 . 134 . 29 Impact 716 | . . 16 52 168 108 372 Slashing . | . . . . . . . Piercing . | . . . . . . . Highest Corruption 7 | . 5 7 . . . 1 Average Corruption 3 | . 3 5 . . . 1 Corruption Purged . | . . . . . . . Corruption Blocked . | . . . . . . . Effects 19 | . 12 6 . . . 1 Message Errors 2 | . 2 . . . . . Matter Fused 3 | . 2 1 . . . . Heat Flow Errors 7 | . 5 2 . . . . Energy Discharges 1 | . 1 . . . . . Parts Fused 2 | . . 1 . . . 1 Data Loss (minor) 2 | . 2 . . . . . Data Loss (major) 1 | . . 1 . . . . Alerts 1 | . . 1 . . . . Overload Shots . | . . . . . . . Overflow Damage 299 | . 81 . 32 3 68 115 Projectiles . | . . . . . . . Explosions 81 | . 81 . . . . . Melee 218 | . . . 32 3 68 115 Knockbacks 1 | . . . . . 1 . Impact 1 | . . . . . 1 . Kinetic . | . . . . . . . Secondary . | . . . . . . . Self-Inflicted Damage 178 | . 164 14 . . . . Shots 3 | . 2 1 . . . . Rammed 2 | . 2 . . . . . Targets Rammed 2 | . 2 . . . . . Kicked . | . . . . . . . Crushed . | . . . . . . . Highest Temperature 314 | 10 314 245 . 4 . 48 Average Temperature 75 | 7 79 123 . 4 . 27 Received Heat Transfer 552 | . 132 12 45 219 . 144 Effects 1 | . 1 . . . . . Energy Bleed 1 | . 1 . . . . . Siege Activations . | . . . . . . . Robots Corrupted . | . . . . . . . Combat Hostiles . | . . . . . . . Parts Fried 7 | . 1 . 2 . 3 1 Impact Corruptions 11 | . . . 2 1 3 5 Robots Melted . | . . . . . . . Combat Hostiles . | . . . . . . . Parts Melted 1 | . 1 . . . . . Heat Transferred 700 | 75 375 250 . . . . Parts Sabotaged . | . . . . . . . Parts Stolen . | . . . . . . . Parts Stripped . | . . . . . . . Power Chain Reactions 2 | . . 2 . . . . Alert | -11 -10 -10 -8 -8 -8 -8 ------- Run | Yrd Mat Sub Mat Gar Mat Gar Peak Influence 540 | 5 317 . 235 540 263 516 Initial 263 | . 3 . 131 152 263 104 Average 255 | 1 213 . 173 337 74 329 Maximum Alert Level 2 | . 1 . 1 2 1 2 Low Security (%) 31 | 100 26 . 73 19 94 14 Level 1 51 | . 73 . 26 52 5 46 Level 2 16 | . . . . 27 . 39 Level 3 . | . . . . . . . Level 4 . | . . . . . . . Level 5 . | . . . . . . . High Security . | . . . . . . . Max Security . | . . . . . . . Squads Dispatched 4 | . 2 . 1 . 1 . Investigation 1 | . . . 1 . . . Extermination . | . . . . . . . Reinforcement 3 | . 2 . . . 1 . Assault . | . . . . . . . Garrison . | . . . . . . . Intercept . | . . . . . . . Searches Triggered . | . . . . . . . Construction Impeded . | . . . . . . . Haulers Reinforced . | . . . . . . . Active Scanning Responses . | . . . . . . . Cargo Convoy Interrupts . | . . . . . . . Stealth | -11 -10 -10 -8 -8 -8 -8 --------- Run | Yrd Mat Sub Mat Gar Mat Gar Distress Signals 5 | . 4 . 1 . . . Communications Jammed . | . . . . . . . Distress Signals . | . . . . . . . Times Spotted 80 | . 17 7 8 22 10 16 Peak Tracking Total 12 | . 6 3 9 12 6 7 Tactical Retreats 12 | . . 1 2 4 4 1 Traps | -11 -10 -10 -8 -8 -8 -8 ------- Run | Yrd Mat Sub Mat Gar Mat Gar Traps Triggered 4 | . . . . 3 . 1 Indirectly . | . . . . . . . Trap Hack Attempts 1 | . . . . . 1 . Triggered . | . . . . . . . Disarmed . | . . . . . . . Reprogrammed . | . . . . . . . Reused . | . . . . . . . Traps Extracted . | . . . . . . . Installed . | . . . . . . . Triggered 1 | . . 1 . . . . Machines | -11 -10 -10 -8 -8 -8 -8 ---------- Run | Yrd Mat Sub Mat Gar Mat Gar Machines Disabled 9 | . 3 1 . 1 . 4 Max in Single Turn 2 | . 2 1 . 1 . 1 Garrison Relay 4 | . . . . 1 . 3 Machines Repaired . | . . . . . . . Machines Dismantled . | . . . . . . . Machines Sabotaged . | . . . . . . . Overloaded Fab Kills . | . . . . . . . Hacking | -11 -10 -10 -8 -8 -8 -8 --------- Run | Yrd Mat Sub Mat Gar Mat Gar Machines Accessed 14 | . 2 1 4 1 3 3 Terminals 11 | . 2 . 3 1 2 3 Fabricators . | . . . . . . . Repair Stations . | . . . . . . . Recycling Units . | . . . . . . . Scanalyzers . | . . . . . . . Garrison Access 2 | . . . 1 . 1 . Total Hacks 35 | . 6 1 11 3 8 6 Successful 18 | . 2 1 5 2 5 3 Failed 17 | . 4 . 6 1 3 3 Catastrophic 6 | . 1 . . 1 2 2 Database Lockouts . | . . . . . . . Manual 7 | . 1 . 2 2 2 . Terminals 32 | . 6 . 10 3 7 6 Fabricators . | . . . . . . . Repair Stations . | . . . . . . . Recycling Units . | . . . . . . . Scanalyzers . | . . . . . . . Garrison Access 2 | . . . 1 . 1 . Terminal Hacks 15 | . 2 1 4 1 4 3 Part Schematic 1 | . . . 1 . . . Prototype ID Bank 2 | . . . 2 . . . Branch Access Points 1 | . . . 1 . . . Emergency Access Points 1 | . . . . 1 . . Alert Level 1 | . . . . . 1 . Unreport Threat 2 | . . . . . 2 . Hauler Manifests 1 | . 1 . . . . . Zone Layout 2 | . 1 . . . 1 . Garrison Registry 1 | . . . . . . 1 Patrol Navigation 1 | . . . . . . 1 Security Stations 1 | . . . . . . 1 Derelict Proto ID Bank 1 | . . 1 . . . . Fabricator Hacks . | . . . . . . . Repair Station Hacks . | . . . . . . . Recycling Unit Hacks . | . . . . . . . Scanalyzer . | . . . . . . . Garrison Access Hacks 2 | . . . 1 . 1 . Unlock Access 2 | . . . 1 . 1 . Unauthorized Hacks 1 | . . . . 1 . . Terminals 1 | . . . . 1 . . Override 1 | . . . . 1 . . Fabricators . | . . . . . . . Repair Stations . | . . . . . . . Recycling Units . | . . . . . . . Scanalyzers . | . . . . . . . Garrison Access . | . . . . . . . Data Cores Recovered 1 | . . . . . 1 . Used 1 | . . . . . 1 . Hacking Detections 10 | . 2 . 2 1 2 3 Full Trace Events 4 | . . . 2 . . 2 Feedback Events . | . . . . . . . Feedback Blocked . | . . . . . . . Robot Schematics Acquired . | . . . . . . . Robots Built . | . . . . . . . Authchips . | . . . . . . . Time . | . . . . . . . Total Robot Build Rating . | . . . . . . . Part Schematics Acquired 1 | . . . 1 . . . Parts Built . | . . . . . . . Authchips . | . . . . . . . Time . | . . . . . . . Total Part Build Rating . | . . . . . . . Parts Repaired . | . . . . . . . Time . | . . . . . . . Parts Recycled . | . . . . . . . Recycled Matter . | . . . . . . . Retrieved Matter . | . . . . . . . Retrieved Components . | . . . . . . . Parts Scanalyzed . | . . . . . . . Part Schematics Acquired . | . . . . . . . Parts Damaged . | . . . . . . . Bothacking | -11 -10 -10 -8 -8 -8 -8 ------------ Run | Yrd Mat Sub Mat Gar Mat Gar Used RIF Installer 3 | . . . . 1 . 2 Hotswap 1 | . . . . . . 1 Autooverride 1 | . . . . . . 1 Robots Hacked 5 | . . . . . . 5 Non-combat . | . . . . . . . Combat 5 | . . . . . . 5 Robot Hacks Applied 6 | . . . . . . 6 wipe_record 1 | . . . . . . 1 overwrite_iff 4 | . . . . . . 4 formatsys_high 1 | . . . . . . 1 Relay Couplers Released 17 | . . . . 5 . 12 Machine Destruction 17 | . . . . 5 . 12 Attached 7 | . . . . . . 7 Fabnet Peak Effective % . | . . . . . . . Robots Rewired . | . . . . . . . Allies Hacked . | . . . . . . . Hacks Repelled . | . . . . . . . Allies | -11 -10 -10 -8 -8 -8 -8 -------- Run | Yrd Mat Sub Mat Gar Mat Gar Total Allies 4 | . . . . . . 4 Largest Group 2 | . . . . . . 2 Highest-Rated Group 32 | . . . . . . 32 Highest-Rated Ally 29 | . . . . . . 29 Total Orders . | . . . . . . . Ally Attacks 18 | . . . . . . 18 Total Damage 266 | . . . . . . 266 Kills 2 | . . . . . . 2 Allies Corrupted . | . . . . . . . Allies Melted . | . . . . . . . Intel | -11 -10 -10 -8 -8 -8 -8 ------- Run | Yrd Mat Sub Mat Gar Mat Gar Robot Analysis Total . | . . . . . . . Derelict Logs Recovered 2 | . . 2 . . . . Drone Launches . | . . . . . . . Drone Recoveries . | . . . . . . . Exploration | -11 -10 -10 -8 -8 -8 -8 ------------- Run | Yrd Mat Sub Mat Gar Mat Gar Turns Passed 2040 | 32 579 270 94 497 163 405 Spaces Moved 2459 | 29 440 427 183 584 324 472 Core 364 | 29 310 21 . 4 . . Treads 146 | . 130 16 . . . . Legs . | . . . . . . . Wheels . | . . . . . . . Hover 130 | . . . . . . 130 Flight 1819 | . . 390 183 580 324 342 Fastest Speed 37 | 50 50 37 37 37 37 37 Average Speed 50 | 50 86 46 37 38 37 48 Slowest Speed 200 | 50 160 160 40 200 40 112 Overloaded Moves . | . . . . . . . Propulsion Burnouts . | . . . . . . . Robots Hopped 8 | . . . . 7 1 . Cave-ins Triggered . | . . . . . . . Exploration Rate (%) 35 | 2 49 28 24 56 35 55 Regions Visited 6 Branch Regions 1 Pre-discovered Areas . | . . . . . . . Known Exits Taken 3 | . . 1 1 . 1 . Unknown Exits Taken 2 | 1 1 . . . . . Scrap Searched 1 | . . 1 . . . . Spaces Dug 18 | . . 1 3 8 2 4 Terrain Destroyed 92 | . 70 5 3 8 2 4 Melee 18 | . . 1 3 8 2 4 Projectile . | . . . . . . . AOE 74 | . 70 4 . . . . Terrain Rammed . | . . . . . . . Walls Destroyed . | . . . . . . . Machines Disabled . | . . . . . . . Actions | -11 -10 -10 -8 -8 -8 -8 --------- Run | Yrd Mat Sub Mat Gar Mat Gar Total 2947 | 36 531 475 195 752 357 601 Wait 142 | . 5 21 . 67 16 33 Move 2438 | 28 439 426 183 568 322 472 Hop 6 | . . . . 5 1 . Pick Up 17 | . 7 1 1 2 3 3 Fast Attach 34 | 4 7 2 1 3 4 13 Attach 18 | . . 2 1 6 3 6 Detach 12 | . . 2 . 3 2 5 Swap 7 | . 4 1 . . . 2 Drop 22 | . 7 4 1 3 . 7 Fire 80 | 4 52 5 1 9 . 9 Melee 113 | . 8 11 6 50 5 33 Ram 2 | . 2 . . . . . Kick . | . . . . . . . Crush . | . . . . . . . Escape Stasis 54 | . . . . 36 . 18 Rewire . | . . . . . . . Trap 1 | . . . . . 1 . Miscellaneous 1 | . . . 1 . . . Route ------- -11/Scrapyard -10/Materials (discovered 2 exits: [*Mat] / *Sub) -10/Subcaves -8/Materials (discovered 3 exits: *Fac x2 / Gar) -8/Garrison (discovered 3 exits: *Mat x3) -8/Materials -8/Garrison (discovered 3 exits: *Fac x3) History --------- Turn | Location | Event 7 | -11/Scrapyard | Discovered new exit (range 15) 33 | -11/Scrapyard | Entered Materials 168 | -10/Materials | Destroyed 8 combat bots 272 | -10/Materials | Discovered new exit (range 18) 337 | -10/Materials | Build established: Mutant 474 | -10/Materials | Core integrity fell below 50% 607 | -10/Materials | Discovered new exit (range 3) 612 | -10/Materials | Entered Subcaves 665 | -10/Subcaves | Core integrity fell below 20% 698 | -10/Subcaves | Learned 4 Materials zone layouts 738 | -10/Subcaves | Identified exit to Materials 752 | -10/Subcaves | Visited 4L-MR0's lab 882 | -10/Subcaves | Entered Materials 882 | -8/Materials | Evolved 4 slots: Utility x4 883 | -8/Materials | Identified exit to Factory 976 | -8/Materials | Identified exit to Garrison 976 | -8/Materials | Entered Garrison 1050 | -8/Garrison | Triggered checkpoint 1142 | -8/Garrison | Garrison Relay disabled 1164 | -8/Garrison | Triggered checkpoint 1226 | -8/Garrison | Triggered checkpoint 1269 | -8/Garrison | Discovered new exit (range 15) 1275 | -8/Garrison | Attempted to access garrison exit controls, blocked by remote lockdown 1352 | -8/Garrison | Triggered checkpoint 1374 | -8/Garrison | Installed Relay Interface Framework 1379 | -8/Garrison | Identified exit to Materials 1414 | -8/Garrison | Build established: Scavenger-Mutant 1434 | -8/Garrison | Core integrity fell below 50% 1466 | -8/Garrison | Triggered checkpoint 1473 | -8/Garrison | Entered Materials 1496 | -8/Materials | Lost 3 parts (1n2u) 1636 | -8/Materials | Identified exit to Garrison 1636 | -8/Materials | Entered Garrison 1690 | -8/Garrison | Learned Factory security intel 1694 | -8/Garrison | Discovered exit to Factory (range 81) 1694 | -8/Garrison | Discovered exit to Factory (range 90) 1694 | -8/Garrison | Discovered exit to Factory (range 60) 1699 | -8/Garrison | Expanded RIF knowledge: Hotswap 1710 | -8/Garrison | Core integrity fell below 20% 1747 | -8/Garrison | Build established: Mutant 1795 | -8/Garrison | Garrison Relay disabled 1842 | -8/Garrison | Triggered checkpoint 1856 | -8/Garrison | Triggered checkpoint 1863 | -8/Garrison | Garrison Relay disabled 1923 | -8/Garrison | Lost 3 parts (3u) 2000 | -8/Garrison | Garrison Relay disabled 2025 | -8/Garrison | Expanded RIF knowledge: Autooverride 2041 | -8/Garrison | Destroyed by L-31 Rogue with Katana Last Messages --------------- 01936_ Acquired Adv. System Shield. 01938_ Acquired Imp. Remote Datajack. 01943_ Acquired Hvy. Phase Cannon. 01944_ Dropped Hvy. Particle Cannon. 01945_ Acquired Neutrino Core. 01982_ Jacked G-47 Trooper... >>wipe_record Installed hostile record filter. Deleted hostile record. 02000_ Garrison Relay disabled. 02000_ Relay Coupler [NC] tumbles out of relay unit. 02000_ Relay Coupler [Grunt] tumbles out of relay unit. 02000_ Relay Coupler [NC] tumbles out of relay unit. 02003_ Acquired Relay Coupler [Grunt]. 02008_ Detecting nearby RIF Installer. 02009_ Extracted 1 energy. Initiating installation procedure... 02025_ Expanded RIF knowledge: Autooverride. 02028_ Hvy. Flail severed. 02039_ Lgt. Ion Engine destroyed. Map ----- +----------------------------------------------------+ | | | | | | | | | | | | | | | | | | | | | | | | | ?????????????????????????????????????????????????? | | ?????????????????????????????????????????????????? | | ?????????????????????????????????????????????????? | | ??#################??????????????????????????????? | | ??# #???????????#####??????????????? | | ??# """ """ #???????????#"""#??????????????? | | ??# "## ##" #???????????#" "#??????????????? | | ??# "#"""""""#" #???????????#" "#??????????????? | | ??# "#"""""""#" #?????????###" "###????????????? | | ??# "#" #?????????# + ^+ #????????????? | | ??# #??########### ####????????????? | | ??# "#" #??# #####"#???????????????? | | ??# "#"""""""#" #??#